Cogmind - Beta 16 @@@ ROGUE MODE // 2025.12.20 @ 14:26:26 Player: Derk Result: Destroyed by L6-V0K(R) with Subdweller Machine Gun Performance ------------- Evolutions (0) 0 Regions Visited (2) 400 Robots Destroyed (27) 135 Value Destroyed (666) 666 Prototype IDs (0) 0 Alien Tech Used (0) 0 Bonus (0) 0 TOTAL SCORE: 1201 Bonus ------- None Cogmind --------- Core Integrity 0/250 Matter 274/300 Energy 172/200 System Corruption 0% Temperature Cool (0) Movement Treading (160) Location -10/Subcaves Parts ------- > --- POWER (1) -------- Subdweller Power Source > --- PROPULSION (2) --- Light Treads Spiked Treads > --- UTILITY (2) ------ Large Storage Unit Subdweller Optics > --- WEAPON (2) ------- Subdweller Beam Cannon Subdweller Machine Gun > --- INVENTORY (15) --- Subdweller Power Source Light Treads Light Treads Aluminum Leg Compact Wheel Subdweller Monowheel Disposable Heat Sink Small Matter Pod (50) Light Armor Plating Scrap Shield Small Laser Subdweller Machine Gun Multitool Piercing Trap Peak State ------------ > --- POWER ------------ Subdweller Power Source > --- PROPULSION ------- Light Treads Spiked Treads > --- UTILITY ---------- Large Storage Unit Subdweller Optics > --- WEAPON ----------- Subdweller Beam Cannon Subdweller Machine Gun > --- INVENTORY -------- Subdweller Power Source Light Treads Light Treads Aluminum Leg Compact Wheel Subdweller Monowheel Disposable Heat Sink Small Matter Pod Light Armor Plating Scrap Shield Small Laser Small Laser Multitool Piercing Trap [Rating: 14] Favorites ----------- Power Ion Engine Engine Ion Engine Propulsion Light Treads Treads Light Treads Utility Large Storage Unit Device Improved Terrain Scanner Storage Large Storage Unit Weapon Light Assault Rifle Energy Gun Medium Laser Energy Cannon Subdweller Beam Cannon Ballistic Gun Light Assault Rifle Special Weapon Mining Laser Build | -11 -10 -10 ------- Run | Yrd Mat Sub Slots Evolved . | . . . Power . | . . . Propulsion . | . . . Utility . | . . . Weapon . | . . . Parts Attached 21 | 6 4 11 Power 4 | 1 1 2 Engine 4 | 1 1 2 Core . | . . . Reactor . | . . . Propulsion 5 | 2 . 3 Treads 5 | 2 . 3 Leg . | . . . Wheel . | . . . Hover . | . . . Flight . | . . . Utility 5 | 1 2 2 Device 3 | . 1 2 Storage 2 | 1 1 . Processor . | . . . Hackware . | . . . Protection . | . . . Artifact . | . . . Weapon 7 | 2 1 4 Energy Gun 3 | 1 . 2 Energy Cannon 1 | . . 1 Ballistic Gun 2 | 1 . 1 Ballistic Cannon . | . . . Launcher . | . . . Special Weapon 1 | . 1 . Impact Weapon . | . . . Slashing Weapon . | . . . Piercing Weapon . | . . . Special Melee Weapon . | . . . Unidentified Prototypes . | . . . Parts Lost 6 | . . 6 Power 1 | . . 1 Propulsion 2 | . . 2 Utility 1 | . . 1 Weapon 2 | . . 2 Highest Loss Streak 5 | . . 5 To Critical Strikes . | . . . Average Backups 10 | 7 11 12 Power . | . 1 . Propulsion 4 | 2 5 4 Utility 2 | 1 2 3 Weapon 2 | 1 2 2 Tool/Special . | . . . Unused Backups 15 | . 1 14 Power 1 | . . 1 Propulsion 5 | . . 5 Utility 6 | . 1 5 Weapon 2 | . . 2 Tool/Special 1 | . . 1 Average Slot Usage (%) 98 | . 99 97 Engine 13 | . 14 12 Treads 27 | . 28 26 Device 13 | . 13 14 Storage 14 | . 14 14 Energy Gun 16 | . 13 21 Ballistic Gun 10 | . 13 4 Peak Build Rating 14 | 7 10 14 Average Rating 9 | 6 9 10 On Entrance 5 | . 7 10 Avg Prop Armor Cover (%) . | . . . Naked Turns . | . . . Heaviest Build 39 | 13 29 39 Greatest Support 40 | 40 40 40 Greatest Overweight (x) 1 | . . 1 Average Overweight (x) . | . . . Largest Inventory Capacity 15 | 8 15 15 Average Capacity 12 | 7 14 15 Most Carried 15 | 8 14 15 Average Carried 11 | 7 11 13 Final Capacity 15 | 8 15 15 Final Carried 15 | 8 13 15 Class Distribution -------------------- 97% | Mutant Dominant Class ---------------- Mutant | -10/Materials Mutant | -10/Subcaves Resources | -11 -10 -10 ----------- Run | Yrd Mat Sub Matter Collected 515 | 278 138 99 Remotely . | . . . Salvage Created 974 | 215 412 347 Parts 65 | 15 25 25 Haulers Intercepted 1 | . 1 . Recyclers Shooed . | . . . Parts Field Recycled . | . . . Retrieved Matter . | . . . Parts Self-Destructed 2 | . . 2 Prevented . | . . . Parts Restored . | . . . Kills | -11 -10 -10 ------- Run | Yrd Mat Sub Combat Hostiles Destroyed 18 | . 10 8 Guns 15 | . 10 5 Cannons 3 | . . 3 Classes Destroyed 8 | 2 4 2 Worker 1 | . 1 . Tunneler 6 | 6 . . Hauler 1 | . 1 . Recycler 1 | 1 . . Swarmer 3 | . 3 . Grunt 9 | . 7 2 Artisan 1 | . . 1 Subdweller 6 | . . 6 Best Kill Streak 4 | 2 4 3 Combat Bots Only 3 | . 3 3 Max Kills in Single Turn 1 | 1 1 1 Gunslinging . | . . . Exploded . | . . . Melee . | . . . Uniques/NPCs Destroyed . | . . . Combat | -11 -10 -10 -------- Run | Yrd Mat Sub Hostile Shots Fired 108 | . 43 65 Missed 30 | . 11 19 Hits 78 | . 32 46 Projectile 78 | . 32 46 AOE 2 | . . 2 Critical Strikes 2 | . . 2 Damage Taken 1395 | . 338 1057 Core 274 | . 25 249 Absorbed by Shields . | . . . Regen/Repaired (Parts) 68 | . 68 . Core Remaining (%) 100 | 100 . . Volleys Fired 101 | 18 49 34 Largest 2 | 2 2 2 Hottest 120 | 70 100 120 Shots Fired 200 | 36 97 67 Gun 186 | 36 96 54 Cannon 13 | . . 13 Launcher . | . . . Special 1 | . 1 . Kinetic 86 | 18 48 20 Thermal 114 | 18 49 47 Explosive . | . . . Electromagnetic . | . . . Robot Hit Streak 18 | 7 8 18 Robot Miss Streak 6 | 1 6 1 Penetration Max . | . . . Secondary Targets 2 | . . 2 Max Gunslinging Chain 1 | . . 1 Shots Hit Robots 133 | 25 52 56 Core Hits 58 | 11 24 23 Critical Kills . | . . . Critical Parts Destroyed . | . . . Critical Strikes 8 | 1 5 2 Burn 7 | 1 5 1 Destroy 1 | . . 1 Melee Attacks . | . . . Impact . | . . . Slashing . | . . . Piercing . | . . . Sneak Attacks . | . . . Combat Hostiles . | . . . Follow-up Attacks . | . . . Damage Inflicted 1578 | 260 547 771 Guns 1302 | 260 547 495 Cannons 276 | . . 276 Explosions . | . . . Melee . | . . . Ramming . | . . . Kinetic 444 | 74 217 153 Thermal 1134 | 186 330 618 Explosive . | . . . Electromagnetic . | . . . Impact . | . . . Slashing . | . . . Piercing . | . . . Highest Corruption . | . . . Average Corruption . | . . . Corruption Purged . | . . . Corruption Blocked . | . . . Overload Shots . | . . . Overflow Damage . | . . . Projectiles . | . . . Explosions . | . . . Melee . | . . . Knockbacks . | . . . Impact . | . . . Kinetic . | . . . Secondary . | . . . Self-Inflicted Damage . | . . . Shots . | . . . Rammed . | . . . Targets Rammed . | . . . Kicked . | . . . Crushed . | . . . Highest Temperature 179 | 100 179 90 Average Temperature 50 | 37 58 35 Received Heat Transfer 405 | . 147 258 Siege Activations . | . . . Martial Activations . | . . . Shielding Activations . | . . . Robots Disrupted . | . . . Combat Hostiles . | . . . Robots Corrupted . | . . . Combat Hostiles . | . . . Parts Fried . | . . . Impact Corruptions . | . . . Robots Melted . | . . . Combat Hostiles . | . . . Parts Melted 6 | 3 3 . Heat Transferred 3251 | 629 1332 1290 Parts Sabotaged . | . . . Parts Stolen . | . . . Parts Stripped . | . . . Power Chain Reactions . | . . . Alert | -11 -10 -10 ------- Run | Yrd Mat Sub Maximum Alert Level . | . . . Low Security (%) 100 | 100 100 . Level 1 . | . . . Level 2 . | . . . Level 3 . | . . . Level 4 . | . . . Level 5 . | . . . High Security . | . . . Max Security . | . . . Peak Influence 152 | 10 152 . Initial . | . . . Average 22 | . 36 . Influence Increases 438 | 35 353 50 Destroy 0b10 Robot/C 240 | . 200 40 Destroy 0b10 Robot/NC 45 | 35 10 . Destroy Leader 52 | . 42 10 Successful Hack 25 | . 25 . Destroy Structure 1 | . 1 . Lose Combat Pursuer 75 | . 75 . Influence Decreases 438 | 35 353 50 Time Decay 373 | 35 298 40 Lost Part 10 | . . 10 Purge Threat 55 | . 55 . Squads Dispatched 2 | . 2 . Investigation . | . . . Extermination . | . . . Reinforcement 2 | . 2 . Assault . | . . . Garrison . | . . . Intercept . | . . . Searches Triggered . | . . . Construction Impeded . | . . . Haulers Reinforced . | . . . Active Scanning Responses . | . . . Cargo Convoy Interrupts . | . . . Stealth | -11 -10 -10 --------- Run | Yrd Mat Sub Distress Signals 2 | . 2 . Communications Jammed . | . . . Distress Signals . | . . . Times Spotted 33 | . 23 10 Peak Tracking Total 4 | . 4 3 Tactical Retreats 2 | . 2 . Traps | -11 -10 -10 ------- Run | Yrd Mat Sub Traps Triggered 2 | . . 2 Indirectly . | . . . Trap Hack Attempts . | . . . Triggered . | . . . Disarmed . | . . . Reprogrammed . | . . . Reused . | . . . Traps Extracted . | . . . Installed . | . . . Triggered . | . . . Most Traps Carried 1 | . . 1 Machines | -11 -10 -10 ---------- Run | Yrd Mat Sub Machines Disabled . | . . . Max in Single Turn . | . . . Machines Repaired . | . . . Machines Dismantled . | . . . Machines Sabotaged . | . . . Overloaded Fab Kills . | . . . Hacking | -11 -10 -10 --------- Run | Yrd Mat Sub Machines Accessed 8 | . 7 1 Terminals 6 | . 6 . Fabricators . | . . . Repair Stations 1 | . 1 . Recycling Units . | . . . Scanalyzers . | . . . Garrison Access . | . . . Total Hacks 23 | . 19 4 Successful 19 | . 15 4 Failed 4 | . 4 . Catastrophic . | . . . Database Lockouts . | . . . Manual 9 | . 9 . Terminals 16 | . 16 . Fabricators . | . . . Repair Stations 3 | . 3 . Recycling Units . | . . . Scanalyzers . | . . . Garrison Access . | . . . Terminal Hacks 10 | . 6 4 Record 4 | . . 4 Unreport Threat 1 | . 1 . Locate Traps 2 | . 2 . Investigation Status 1 | . 1 . Hauler Manifests 1 | . 1 . Zone Layout 1 | . 1 . Fabricator Hacks . | . . . Repair Station Hacks 3 | . 3 . Scan Component 2 | . 2 . Repair 1 | . 1 . Recycling Unit Hacks . | . . . Scanalyzer . | . . . Garrison Access Hacks . | . . . Unauthorized Hacks 6 | . 6 . Terminals 6 | . 6 . Track 1 | . 1 . Botnet 1 | . 1 . Skim 4 | . 4 . Fabricators . | . . . Repair Stations . | . . . Recycling Units . | . . . Scanalyzers . | . . . Garrison Access . | . . . Data Cores Recovered . | . . . Used . | . . . Hacking Detections 7 | . 7 . Full Trace Events . | . . . Feedback Events . | . . . Feedback Blocked . | . . . Robot Schematics Acquired . | . . . Robots Built . | . . . Authchips . | . . . Time . | . . . Total Robot Build Rating . | . . . Part Schematics Acquired . | . . . Parts Built . | . . . Authchips . | . . . Time . | . . . Total Part Build Rating . | . . . Part Studies Acquired . | . . . Parts Repaired 1 | . 1 . Time 26 | . 26 . Parts Recycled . | . . . Recycled Matter . | . . . Retrieved Matter . | . . . Retrieved Components . | . . . Parts Scanalyzed . | . . . Part Schematics Acquired . | . . . Parts Damaged . | . . . Bothacking | -11 -10 -10 ------------ Run | Yrd Mat Sub Used RIF Installer . | . . . Robots Hacked . | . . . Non-combat . | . . . Combat . | . . . Robot Hacks Applied . | . . . Relay Couplers Released . | . . . Fabnet Peak Effective % . | . . . Robots Rewired . | . . . Allies Hacked . | . . . Hacks Repelled . | . . . Allies | -11 -10 -10 -------- Run | Yrd Mat Sub Total Allies . | . . . Largest Group . | . . . Highest-Rated Group . | . . . Highest-Rated Ally . | . . . Total Orders . | . . . Ally Attacks . | . . . Total Damage . | . . . Kills . | . . . Allies Corrupted . | . . . Allies Melted . | . . . Intel | -11 -10 -10 ------- Run | Yrd Mat Sub Active Infowar (turns) 2004 | . 1431 573 Optics 531 | . . 531 Terrain 1473 | . 1431 42 Robot Analysis Total . | . . . Derelict Logs Recovered . | . . . Drone Launches . | . . . Drone Recoveries . | . . . Exploration | -11 -10 -10 ------------- Run | Yrd Mat Sub Turns Passed 3147 | 910 1475 762 Spaces Moved 1344 | 155 804 385 Core 3 | 3 . . Treads 1341 | 152 804 385 Legs . | . . . Wheels . | . . . Hover . | . . . Flight . | . . . Fastest Speed 50 | 50 160 160 Average Speed 160 | 157 160 163 Slowest Speed 240 | 160 160 240 Overloaded Moves . | . . . Propulsion Burnouts . | . . . Robots Hopped . | . . . Potential Cave-ins . | . . . Cave-ins Triggered . | . . . Exploration Rate (%) 42 | 7 99 20 Regions Visited 2 Branch Regions 1 Pre-discovered Areas 1 | . . 1 Known Exits Taken . | . . . Unknown Exits Taken 2 | 1 1 . Scrap Searched . | . . . Spaces Dug 2 | . 1 1 Terrain Destroyed 2 | . 1 1 Melee . | . . . Projectile 2 | . 1 1 AOE . | . . . Terrain Rammed . | . . . Walls Destroyed . | . . . Machines Disabled . | . . . Actions | -11 -10 -10 --------- Run | Yrd Mat Sub Total 2142 | 785 903 454 Wait 637 | 599 36 2 Move 1342 | 154 803 385 Hop . | . . . Pick Up 27 | 8 7 12 Fast Attach 8 | 6 1 1 Attach 7 | . 1 6 Detach 1 | . . 1 Swap 8 | . 3 5 Drop 11 | . 3 8 Fire 101 | 18 49 34 Melee . | . . . Ram . | . . . Kick . | . . . Crush . | . . . Escape Stasis . | . . . Rewire . | . . . Trap . | . . . Miscellaneous . | . . . Route ------- -11/Scrapyard -10/Materials (discovered 6 exits: [*Mat x3] / [*Min x2] / *Sub) -10/Subcaves History --------- Turn | Location | Event 52 | -11/Scrapyard | Discovered new exit (range 15) 911 | -11/Scrapyard | Entered Materials 912 | -10/Materials | Build established: Mutant 1221 | -10/Materials | Discovered new exit (range 12) 1335 | -10/Materials | Discovered new exit (range 13) 1988 | -10/Materials | Discovered new exit (range 5) 2004 | -10/Materials | Discovered new exit (range 15) 2200 | -10/Materials | Repaired Med. Laser 2368 | -10/Materials | Discovered new exit (range 9) 2368 | -10/Materials | Discovered new exit (range 8) 2386 | -10/Materials | Entered Subcaves 2387 | -10/Subcaves | Approached by a straggling Scientist 2549 | -10/Subcaves | Core integrity fell below 50% 2598 | -10/Subcaves | Lost 5 parts (1p2n2w) 2851 | -10/Subcaves | Learned location of Zion (-7) 2851 | -10/Subcaves | Met a Zionite searching for "candidates" 2932 | -10/Subcaves | Visited Clippyterm 2937 | -10/Subcaves | Learned Research security intel 2937 | -10/Subcaves | Learned Factory emergency access door positions 2991 | -10/Subcaves | A swath of the cavern ceiling suddenly collapsed 3078 | -10/Subcaves | Core integrity fell below 20% 3148 | -10/Subcaves | Destroyed by L6-V0K(R) with Subdweller Machine Gun Last Messages --------------- 02982_ Triggered Piercing Trap. 02982_ Spikes shoot up from the floor. 02982_ Critical hit (Impale). 02991_ Mining Laser crushed. A swath of the cavern ceiling suddenly collapses. 03016_ 9Q-5IL(R) destroyed. 03024_ Dropped Sml. Laser. 03025_ Acquired Sub. Machine Gun. 03026_ Acquired 20 matter. 03077_ XQ-Y7F(R) affixes Scrap Shield Fragment to Scrap Shield. 03081_ XQ-Y7F(R) destroyed. 03084_ SU-OCN(R) destroyed. 03090_ 57-69E(R) destroyed. 03096_ Dropped Ion Engine. 03101_ Dropped Sub. Machine Gun. 03101_ Acquired Sub. Machine Gun. 03106_ Dropped Sml. Laser. 03107_ Acquired Sub. Machine Gun. 03125_ Sub. Optics shoots sparks and powers down. 03141_ L6-V0K(R) suffers critical hit (Destroy). Map ----- +----------------------------------------------------+ | ??????????????###"##"## ^ #?????????????????????? | | ??????????????# #""""### ##?????????????????????? | | ??????????????###"###"### #??????????????????????? | | ???????????????##"#"#""#? ?????????????????????? | | ????????????????##""""## ????????????????????? | | ?????????###??###= #### ???????????????????? | | ?????????#&####&%!####### # ??????????????????? | | ?????????#!=#[#"&"["#????#### ?????????????????? | | ?????????#%*#% !#####?????????###????????????????? | | ?????????#&=#*#" "#?????????????????????????????? | | ?????????##& "## ##????????????????????????????? | | ??????????##### #????????????????????????????? | | ??????????????## #????????????????????????????? | | ???????????????## ##????????????????????????????? | | ????????????????# ##?????????????????????????????? | | ????????????????# #?????????????????????????????? | | ???????????????## ###???????????????????????????? | | ??????????????##" # #???????????????????????????? | | ??????????????#""""" #???????????????????????????? | | ??????????????##"""" #???????????????????????????? | | ???????????????#" "" #???????????????????????????? | | ??????????????##""" #???????????????????????????? | | ??????????????#""""" #???????####????????????????? | | ??????????????# "" ##?#### #????????????????? | | ??????????????## """ ### #????????????????? | | ???????????????##""""" @ #?????????????????? | | ????????????????##" """ ## ##?????????????????? | | ?????????????????##""""##? #??????????????????? | | ??????????????????##"###??? R #??????????????????? | | ???????????????????#"#????? #??????????????????? | | ???????????????????##??????? ?????????????????? | | ????????????????????????????### #????????????????? | | ???????????????????????????????##????????????????? | | ?????????????????????????????????????????????????? | | ?????????????????????????????????????????????????? | | ?????????????????????????????????????????????????? | | ?????????????????????????????????????????????????? | | ?????????????????????????????????????????????????? | | ?????????????????????????????????????????????????? | | ?????????????????????????????????????????????????? | | ?????????????????????????????????????????????????? | | ?????????????????????????????????????????????????? | | ?????????????????????????????????????????????????? | | ?????????????????????????????????????????????????? | | ?????????????????????????????????????????????????? | | ?????????????????????????????????????????????????? | | ?????????????????????????????????????????????????? | | ?????????????????????????????????????????????????? | | ?????????????????????????????????????????????????? | | | +----------------------------------------------------+ Best States ------------- Heat Dissipation 39 Energy Generation 10 Energy Capacity 250 Matter Stores 300 Matter Capacity 300 Sight Range 21 Terrain Scan Range 16 Terrain Scan Density 10 Evasion (%) 40 Recoil Reduction 2 Item Schematics ----------------- None Robot Schematics ------------------ None Fabricated ------------ Nothing Repaired ---------- Med. Laser | 2% | -10/Materials Studied --------- None Alien Tech Used ----------------- None Achievements -------------- None Challenges ------------ None Game ------ Seed SuperdenseMetaHoverbase Manual? 0 Play Time 00:15:41 Cumulative 549.4 hours Start 2025.12.20 @ 14:12:08 End 2025.12.20 @ 14:26:26 Sessions 1 Manual Loads 0 Difficulty Rogue Special Mode None Game No. 228 Rogue 228 Adventurer 0 Explorer 0 Win Type - Total 17 Types 15/0/1/1/0/0/0/0/0/0 Lore% 80 Gallery% 77 Achievement% 54 Wizard Run 0 Options --------- Layout 0 ASCII 0 Keyboard 0 Movement Numpad Keybinds 0 Fullscreen 1 Font 24/X11 Map View 76x50 Zoom Use 0% Tactical HUD 1 Map Filters NONE Filters NONE Steam 1 RUN: 28b61cc5-ef8f-4a35-97de-59b9464daf0a